bitfinex/quotes_BTCUSD_20220101
["timestamp","ask_amount","ask_price","bid_price","bid_amount"]
[1641034644176,0.93523434,46932.0,46931.0,0.00200408]
[1641034644971,0.95602935,46932.0,46931.0,0.00200408]
[1641034645272,0.93437575,46932.0,46931.0,0.00200408]
[1641034646118,0.9526793,46932.0,46931.0,0.00200408]
[1641034646315,0.93188429,46932.0,46931.0,0.00200408]
[1641034646718,0.61880444,46932.0,46931.0,0.00200408]
[1641034646915,0.61880444,46932.0,46931.0,0.00319552]
[1641034647116,0.62192959,46932.0,46931.0,0.00200552]
[1641034647817,0.62192959,46932.0,46928.0,0.00611425]
[1641034647818,0.65839795,46932.0,46928.0,0.00611425]
[1641034648018,0.053292,46930.0,46928.0,0.00611425]
[1641034649017,0.053292,46930.0,46928.0,0.26876225]
[1641034649418,0.053292,46930.0,46928.0,0.00611425]
[1641034651469,0.053292,46930.0,46927.0,0.00610658]
[1641034653918,0.053289,46928.0,46927.0,0.00610658]
[1641034654118,0.290645,46928.0,46927.0,0.00610658]
[1641034654918,0.61985574,46928.0,46927.0,0.00610658]
[1641034655919,0.290645,46928.0,46927.0,0.00610658]
[1641034656120,0.31156962,46928.0,46927.0,0.00610658]
[1641034656520,0.31156962,46928.0,46925.0,0.00610809]
[1641034657124,0.32959925,46928.0,46925.0,0.00610809]
[1641034657374,0.30867463,46928.0,46925.0,0.00610809]
[1641034657576,0.6360483,46928.0,46925.0,0.00610809]
[1641034658673,0.65786221,46928.0,46925.0,0.00610809]
[1641034658873,0.63983258,46928.0,46925.0,0.00610809]
[1641034659076,0.31245891,46928.0,46925.0,0.00610809]
[1641034659274,0.33298513,46928.0,46925.0,0.00610809]
[1641034659475,0.31117122,46928.0,46925.0,0.00610809]
[1641034660175,0.33165964,46928.0,46925.0,0.00610809]
[1641034660377,0.31113342,46928.0,46925.0,0.00610809]
[1641034661317,0.33123024,46928.0,46924.0,0.00610816]
[1641034661519,0.07338582,46928.0,46924.0,0.00610816]
[1641034661720,0.07338582,46928.0,46925.0,0.00010187]
[1641034662220,0.07338582,46928.0,46926.0,0.340453]
[1641034662423,0.053289,46928.0,46927.0,0.2783977]
[1641034662621,0.053289,46928.0,46927.0,0.6188507]
[1641034663022,0.053289,46928.0,46927.0,0.2783977]
[1641034663224,0.053289,46928.0,46925.0,0.00010187]
[1641034668289,0.24411905,46927.0,46925.0,0.00010187]
[1641034668518,0.29741105,46927.0,46925.0,0.00010187]
[1641034669322,0.29741105,46927.0,46924.0,0.00121003]
[1641034669520,0.053292,46927.0,46924.0,0.00121003]
[1641034670522,0.29638697,46927.0,46924.0,0.00121003]
[1641034670723,0.63706954,46927.0,46924.0,0.00121003]
[1641034671326,0.29638697,46927.0,46924.0,0.00121003]
[1641034671524,0.29638697,46927.0,46922.0,0.00892167]
[1641034672124,0.57820019,46927.0,46922.0,0.00892167]
[1641034672367,0.57820019,46927.0,46921.0,0.002]
[1641034673166,0.45184706,46926.0,46921.0,0.002]
[1641034673366,0.053293,46924.0,46921.0,0.002]
[1641034692720,0.053293,46924.0,46921.0,0.00354507]
[1641034694126,0.053293,46924.0,46913.0,0.30826596]
[1641034694127,0.23859349,46923.0,46913.0,0.30826596]
[1641034694323,0.053308,46918.0,46912.0,0.9872]
[1641034694872,0.053308,46918.0,46911.0,0.002]
[1641034695071,0.30692825,46913.0,46911.0,0.002]
[1641034695472,0.053307,46912.0,46911.0,0.002]
[1641034695674,0.053307,46912.0,46908.0,0.00558437]
[1641034696075,0.237356,46911.0,46908.0,0.00558437]
[1641034696474,0.00126535,46909.0,46908.0,0.00558591]
[1641034696675,0.23862135,46909.0,46908.0,0.00558591]
[1641034697274,0.43,46908.0,46905.0,0.01003494]
[1641034697474,0.053322,46906.0,46905.0,0.01003494]
[1641034697674,0.37701171,46906.0,46905.0,0.01003494]
[1641034697876,0.237356,46906.0,46905.0,0.01003494]
[1641034698175,0.237356,46906.0,46905.0,0.01123113]
[1641034698630,0.237356,46906.0,46902.0,0.0923898]
[1641034698631,0.053327,46904.0,46902.0,0.0923898]
[1641034698827,0.00128004,46903.0,46902.0,0.0923898]
[1641034699026,0.66,46902.0,46896.0,0.00022]
[1641034699228,0.23863604,46903.0,46896.0,0.00022]
[1641034699229,0.31132258,46903.0,46896.0,0.00022]
[1641034699426,0.24801723,46902.0,46896.0,0.00022]
[1641034700627,0.41956254,46899.0,46896.0,0.00022]
[1641034700828,0.05333,46899.0,46896.0,0.00022]
[1641034701030,0.29474591,46899.0,46896.0,0.00022]
[1641034701232,0.05333,46899.0,46896.0,0.00022]
[1641034702276,0.42934781,46898.0,46896.0,0.00022]
[1641034703672,0.44867108,46898.0,46896.0,0.00022]
[1641034704674,0.46801759,46898.0,46896.0,0.00022]
[1641034704874,0.44869432,46898.0,46896.0,0.00022]
[1641034705575,0.46950233,46898.0,46896.0,0.00022]
[1641034705776,0.45015582,46898.0,46896.0,0.00022]
[1641034706429,0.7619996,46898.0,46896.0,0.00022]
[1641034706624,0.78216988,46898.0,46896.0,0.00022]
[1641034706824,0.99871787,46898.0,46896.0,0.00022]
[1641034707024,0.6849097,46898.0,46896.0,0.00022]
[1641034707725,0.70405286,46898.0,46896.0,0.00022]
[1641034707925,0.68584697,46898.0,46896.0,0.00022]
[1641034708226,0.01914316,46898.0,46896.0,0.00022]
[1641034708429,0.01914316,46898.0,46897.0,0.340673]
[1641034709030,0.01914316,46898.0,46897.0,0.66084164]
[1641034709228,0.03751182,46898.0,46897.0,0.66084164]
[1641034709527,0.01836866,46898.0,46897.0,0.66084164]
[1641034709969,0.34435076,46905.0,46897.0,0.66084164]
[1641034710268,0.053314,46902.0,46897.0,0.66084164]
[1641034712071,0.053314,46902.0,46897.0,0.00022]
[1641034713269,0.053314,46902.0,46898.0,9.27e-05]
[1641034713524,0.35659085,46902.0,46898.0,9.27e-05]
[1641034713725,0.237356,46901.0,46898.0,9.27e-05]
[1641034713926,0.05333,46900.0,46898.0,9.27e-05]
[1641034714329,0.237356,46899.0,46898.0,9.27e-05]
[1641034714929,0.28,46898.0,46885.0,0.85340294]
[1641034715226,0.053331,46892.0,46885.0,0.85340294]
[1641034715426,0.053331,46892.0,46886.0,0.340453]
[1641034715626,0.053331,46892.0,46886.0,0.440453]
[1641034715826,0.28289645,46899.0,46887.0,0.1]
[1641034715827,0.30473296,46899.0,46887.0,0.1]
[1641034716027,0.02183651,46899.0,46889.0,0.42391324]
[1641034716227,0.053318,46896.0,46891.0,0.1]
[1641034716427,0.02183651,46899.0,46892.0,0.59102592]
[1641034716627,0.02183651,46899.0,46892.0,0.69102592]
[1641034717027,0.00126667,46903.0,46892.0,0.69102592]
[1641034717869,0.053316,46898.0,46892.0,0.69102592]
[1641034721623,0.053316,46898.0,46892.0,0.59102592]
[1641034722027,0.053316,46898.0,46893.0,0.27429623]
[1641034722225,0.053316,46898.0,46894.0,0.340453]
[1641034722425,0.053316,46898.0,46885.0,0.20825833]
[1641034722624,0.053316,46898.0,46886.0,0.340453]
[1641034722824,0.053316,46898.0,46886.0,0.390453]
[1641034723024,0.053316,46898.0,46889.0,0.31994068]
[1641034723227,0.053316,46898.0,46890.0,0.6226216]
[1641034723826,0.053316,46898.0,46890.0,0.81996592]
[1641034724025,0.053316,46898.0,46890.0,0.6226216]
[1641034724428,0.053316,46898.0,46890.0,0.340453]
[1641034724886,0.053316,46898.0,46886.0,0.2]
[1641034724887,0.36143983,46898.0,46886.0,0.2]
[1641034725085,0.00123853,46896.0,46885.0,0.0046]
[1641034725283,0.053332,46891.0,46885.0,0.0046]
[1641034725487,0.053332,46891.0,46886.0,0.340453]
[1641034725683,0.053332,46891.0,46885.0,0.32162408]
[1641034726283,0.053332,46891.0,46884.0,0.00022]
[1641034734479,0.053332,46891.0,46885.0,8.433e-05]
[1641034735179,0.053332,46891.0,46886.0,0.340453]
[1641034736227,0.29088337,46890.0,46886.0,0.340453]
[1641034736428,0.29088337,46890.0,46885.0,8.433e-05]
[1641034736429,0.053335,46888.0,46885.0,8.433e-05]
[1641034737127,0.053335,46888.0,46886.0,0.340453]
[1641034737328,0.053335,46888.0,46885.0,8.433e-05]
[1641034737529,0.053335,46888.0,46886.0,0.340453]
[1641034737729,0.053335,46888.0,46885.0,8.433e-05]
[1641034737928,0.053335,46888.0,46886.0,0.340453]
[1641034738128,0.053335,46888.0,46885.0,8.433e-05]
[1641034738329,0.053335,46888.0,46886.0,0.340453]
[1641034738530,0.053335,46888.0,46885.0,8.433e-05]
[1641034738730,0.053335,46888.0,46886.0,0.340453]
[1641034738931,0.053335,46888.0,46885.0,8.433e-05]
[1641034739132,0.053335,46888.0,46886.0,0.340453]
[1641034739333,0.053335,46888.0,46885.0,8.433e-05]
[1641034739631,0.053335,46888.0,46886.0,0.340453]
[1641034739873,0.053335,46888.0,46885.0,8.433e-05]
[1641034740078,0.053335,46888.0,46886.0,0.340453]
[1641034740275,0.053335,46888.0,46885.0,8.433e-05]
[1641034740475,0.053335,46888.0,46886.0,0.340453]
[1641034740674,0.053335,46888.0,46885.0,8.433e-05]
[1641034740875,0.053335,46888.0,46886.0,0.340453]
[1641034741076,0.053335,46888.0,46885.0,8.433e-05]
[1641034741276,0.053335,46888.0,46886.0,0.62243346]
[1641034741779,0.02111489,46892.0,46887.0,0.340453]
[1641034741978,0.02111489,46892.0,46891.0,0.340453]
[1641034742177,0.02111489,46892.0,46891.0,0.8266299]
[1641034742376,0.02111489,46892.0,46891.0,0.95980326]
[1641034743178,0.053316,46900.0,46891.0,0.95980326]
[1641034743376,0.02116042,46903.0,46893.0,0.1]
[1641034743632,0.02116042,46903.0,46895.0,0.1]
[1641034743832,0.30671442,46913.0,46897.0,0.71]
[1641034743833,0.00245822,46908.0,46897.0,0.71]
[1641034744033,0.00245822,46908.0,46898.0,0.440453]
[1641034744034,0.01853531,46903.0,46898.0,0.440453]
[1641034744231,0.01853531,46903.0,46902.0,0.60341436]
[1641034744534,0.01853531,46903.0,46902.0,1.03195405]
[1641034744731,0.01853531,46903.0,46902.0,1.06589405]
[1641034745332,0.01853531,46903.0,46902.0,0.85716436]
[1641034745532,0.01853531,46903.0,46902.0,1.19196672]
[1641034745734,0.00245822,46908.0,46902.0,0.90919536]
[1641034745933,0.053314,46906.0,46902.0,0.47981379]
[1641034746134,0.053314,46906.0,46902.0,0.35845748]
[1641034747035,0.053314,46906.0,46902.0,0.37806257]
[1641034747281,0.053314,46906.0,46902.0,0.01960509]
[1641034748271,0.053314,46906.0,46895.0,0.54499993]
[1641034748473,0.053314,46906.0,46898.0,0.26080934]
[1641034748772,0.053314,46906.0,46899.0,0.340453]
[1641034748972,0.053314,46906.0,46899.0,0.64574924]
[1641034749173,0.053314,46906.0,46899.0,0.74574924]
[1641034750174,0.053314,46906.0,46899.0,0.76558424]
[1641034750673,0.053314,46906.0,46899.0,0.97558424]
[1641034751128,0.053314,46906.0,46899.0,1.04584424]
[1641034751329,0.053314,46906.0,46899.0,1.02600924]
[1641034751527,0.053314,46906.0,46899.0,0.97600924]
[1641034752128,0.053314,46906.0,46899.0,0.9969286]
[1641034752329,0.053314,46906.0,46899.0,0.9766686]
[1641034753129,0.053314,46906.0,46899.0,0.99547505]
[1641034753329,0.053314,46906.0,46899.0,0.97455569]
[1641034754629,0.053314,46906.0,46899.0,0.99407396]
[1641034754880,0.053314,46906.0,46899.0,0.97526751]
[1641034755080,0.053314,46906.0,46899.0,0.99647378]
[1641034755281,0.053314,46906.0,46899.0,0.97695551]
[1641034755485,0.048314,46906.0,46899.0,0.97695551]
[1641034755680,0.23859029,46911.0,46899.0,0.97695551]
[1641034755881,0.00137073,46912.0,46899.0,1.02695551]
[1641034756180,0.00137073,46912.0,46899.0,1.04663934]
[1641034756480,0.00137073,46912.0,46899.0,1.02543307]
[1641034756880,0.053307,46909.0,46903.0,0.29115259]
[1641034757082,0.053307,46909.0,46904.0,0.27357815]
[1641034757280,0.053307,46909.0,46905.0,0.340453]
[1641034758182,0.053307,46909.0,46905.0,0.3586254]
[1641034758827,0.053307,46909.0,46905.0,0.0181724]
[1641034759228,0.053307,46909.0,46905.0,0.03958338]
[1641034759428,0.053307,46909.0,46905.0,0.02141098]
[1641034760428,0.053307,46909.0,46900.0,0.31895954]
[1641034760632,0.053307,46909.0,46901.0,0.340453]
[1641034761029,0.28268117,46908.0,46901.0,0.340453]
[1641034761228,0.053314,46905.0,46901.0,0.340453]
[1641034761828,0.0001,46912.0,46901.0,0.340453]
[1641034762129,0.0001,46912.0,46901.0,0.3615276]
[1641034762380,0.053306,46909.0,46901.0,0.3615276]
[1641034763180,0.053306,46909.0,46906.0,0.02131855]
[1641034763378,0.053306,46909.0,46908.0,0.02131855]
[1641034764381,0.053306,46909.0,46908.0,0.00137575]
[1641034765181,0.290662,46909.0,46908.0,0.00137575]
[1641034771589,0.28963965,46909.0,46908.0,0.00137575]
[1641034779583,0.05228365,46909.0,46908.0,0.00137575]
[1641034779883,0.05228365,46909.0,46908.0,2.53337779]
[1641034780085,0.05228365,46909.0,46908.0,0.34182875]
[1641034780385,0.05228365,46909.0,46908.0,0.00137575]
[1641034784043,0.28963965,46909.0,46908.0,0.00137575]
[1641034785985,0.29089256,46909.0,46899.0,0.23026064]
[1641034786185,0.053328,46904.0,46899.0,0.23026064]
[1641034786386,0.053329,46903.0,46899.0,0.23026064]
[1641034786587,0.053329,46903.0,46899.0,0.21]
[1641034786588,0.00122391,46903.0,46899.0,0.21]
[1641034787588,0.159993,46901.0,46899.0,0.21]
[1641034787787,0.237356,46900.0,46899.0,0.21]
[1641034787987,0.60504844,46900.0,46899.0,0.21]
[1641034788836,0.65838244,46900.0,46899.0,0.21]
[1641034795687,0.053339,46897.0,46894.0,0.00888344]
[1641034795888,0.237356,46896.0,46894.0,0.00888344]
[1641034796334,0.237356,46896.0,46892.0,0.00553943]
[1641034796535,0.32190266,46893.0,46892.0,0.00553979]
[1641034796737,0.85,46892.0,46884.0,0.00022]
[1641034796938,0.61260366,46893.0,46884.0,0.00022]
[1641034796939,0.160034,46890.0,46884.0,0.00022]
[1641034797335,0.15930971,46890.0,46884.0,0.00022]
[1641034797537,0.1585861,46890.0,46884.0,0.00022]
[1641034797940,0.00126291,46887.0,46884.0,0.00022]
[1641034798139,0.68231624,46886.0,46884.0,0.00022]
[1641034799641,0.68231624,46886.0,46884.0,0.21022]
[1641034800283,0.29160676,46886.0,46884.0,0.21022]
[1641034800484,0.053347,46886.0,46884.0,0.21022]
[1641034800685,0.053347,46886.0,46885.0,0.340453]
[1641034800885,0.053347,46886.0,46885.0,0.26607272]
[1641034801086,0.053347,46886.0,46885.0,0.60652572]
[1641034801988,0.053347,46886.0,46885.0,0.73969908]
[1641034803734,0.053347,46886.0,46885.0,0.47362636]
[1641034803935,0.053347,46886.0,46885.0,0.60442339]
[1641034804333,0.053347,46886.0,46885.0,0.6049852]
[1641034804540,0.053347,46886.0,46885.0,0.340453]
[1641034805139,0.053347,46886.0,46884.0,0.21022]
[1641034806937,0.053347,46886.0,46885.0,0.340453]
[1641034807142,0.0046,46893.0,46885.0,0.340453]
[1641034807143,0.053331,46888.0,46885.0,0.62678974]
[1641034807388,0.41419248,46898.0,46885.0,0.62678974]
[1641034807588,0.26483106,46894.0,46885.0,0.62678974]
[1641034807790,0.26483106,46894.0,46886.0,2.32117914]
[1641034807988,0.26483106,46894.0,46887.0,0.340453]
[1641034808189,0.106664,46891.0,46888.0,0.29568927]
[1641034808389,0.106664,46891.0,46884.0,0.21022]
[1641034808390,0.053331,46891.0,46885.0,0.30515053]
[1641034809395,0.053331,46891.0,46888.0,0.00200826]
[1641034814537,0.053331,46891.0,46888.0,0.26190864]
[1641034814793,0.053331,46891.0,46890.0,0.00200826]
[1641034816888,0.290687,46891.0,46890.0,0.00200826]
[1641034821543,0.053331,46891.0,46890.0,0.00200826]
[1641034821944,0.053331,46891.0,46890.0,0.33558265]
[1641034822393,0.053331,46891.0,46890.0,0.95772418]
[1641034822596,0.61772386,46903.0,46890.0,1.00772418]
[1641034822597,0.053321,46893.0,46890.0,1.00772418]
[1641034822797,0.053321,46893.0,46892.0,0.340453]
[1641034822992,0.053321,46893.0,46892.0,0.9558515]
[1641034823192,0.053321,46893.0,46892.0,1.41163316]
[1641034823391,0.053321,46893.0,46892.0,1.72033122]
[1641034823592,0.053321,46893.0,46892.0,1.43033122]
[1641034823792,0.053321,46893.0,46892.0,1.45093009]
[1641034824191,0.053321,46893.0,46892.0,0.99715669]
[1641034824794,0.053321,46893.0,46892.0,1.01851283]
[1641034824992,0.053321,46893.0,46892.0,0.99791396]
[1641034825594,0.053321,46893.0,46892.0,0.6892159]
[1641034825794,0.053321,46893.0,46892.0,0.70959337]
[1641034826040,0.053321,46893.0,46892.0,0.68823723]
[1641034826443,0.053321,46893.0,46892.0,0.68952982]
[1641034826839,0.053321,46893.0,46892.0,0.70789162]
[1641034827040,0.053321,46893.0,46892.0,0.68751415]
[1641034827441,0.053321,46893.0,46892.0,0.36211565]
[1641034828240,0.053321,46893.0,46892.0,0.02166265]
[1641034828444,0.048321,46893.0,46892.0,0.02166265]
[1641034828640,0.048321,46893.0,46892.0,0.00330085]
[1641034830992,0.285677,46893.0,46892.0,0.00330085]
[1641034831588,0.048321,46893.0,46892.0,0.00330085]
[1641034832788,0.048321,46893.0,46892.0,0.00872881]
[1641034836442,0.042888,46893.0,46892.0,0.00872881]
[1641034839990,0.123672,46893.0,46892.0,0.00872881]
[1641034842938,0.123672,46893.0,46892.0,0.30124999]
[1641034847426,0.123672,46893.0,46892.0,0.00872881]
[1641034848430,0.123672,46893.0,46892.0,0.34364608]
[1641034849740,0.123672,46893.0,46892.0,0.6135299]
[1641034849941,0.123672,46893.0,46892.0,0.97009055]
[1641034850140,0.123672,46893.0,46892.0,0.70020673]
[1641034850741,0.123672,46893.0,46892.0,0.97216561]
[1641034851043,0.123672,46893.0,46892.0,0.97044725]
[1641034851441,0.123672,46893.0,46892.0,0.36528946]
[1641034851641,0.123672,46893.0,46892.0,0.36449624]
[1641034852297,0.123672,46893.0,46892.0,0.34418181]
[1641034852591,0.123672,46893.0,46892.0,0.00372881]
[1641034855193,0.123672,46893.0,46892.0,0.00813222]
[1641034868995,0.411028,46893.0,46892.0,0.00813222]
[1641034869190,0.273672,46893.0,46892.0,0.00813222]
[1641034869395,0.223672,46893.0,46892.0,0.00813222]
[1641034870393,0.123672,46893.0,46892.0,0.00813222]
[1641034872437,0.123672,46893.0,46892.0,0.0093284]
[1641034875490,0.123672,46893.0,46892.0,0.14250176]
[1641034875692,0.123672,46893.0,46892.0,0.80071994]
[1641034875890,0.080784,46893.0,46892.0,0.80071994]
[1641034876091,0.080784,46893.0,46892.0,0.85071994]
[1641034876491,0.080784,46893.0,46892.0,0.90071994]
[1641034877194,0.080784,46893.0,46892.0,0.60261907]
[1641034877592,0.080784,46893.0,46892.0,0.50261907]
[1641034877993,0.080784,46893.0,46892.0,0.36944571]
[1641034878191,0.080784,46893.0,46892.0,0.38904591]
[1641034878391,0.080784,46893.0,46892.0,0.3693816]
[1641034879048,0.080784,46893.0,46892.0,0.50255496]
[1641034879249,0.080784,46893.0,46892.0,0.52078626]
[1641034879449,0.080784,46893.0,46892.0,0.50118606]
[1641034879648,0.080784,46893.0,46892.0,0.60118606]
[1641034879852,0.07733124,46893.0,46892.0,0.50118606]
[1641034880249,0.07733124,46893.0,46892.0,0.5207274]
[1641034880451,0.07733124,46893.0,46892.0,0.5024961]
[1641034880752,0.07733124,46893.0,46892.0,0.36932274]
[1641034881152,0.07733124,46893.0,46892.0,0.38945292]
[1641034881651,0.07733124,46893.0,46892.0,0.04899992]
[1641034882051,0.07733124,46893.0,46892.0,0.0093284]
[1641034882294,0.07733124,46893.0,46892.0,0.02739731]
[1641034883892,0.07733124,46893.0,46892.0,0.0093284]
[1641034884093,0.07733124,46893.0,46892.0,0.3497814]
[1641034884293,0.07916505,46893.0,46892.0,0.3497814]
[1641034884495,0.07916505,46893.0,46892.0,0.68268459]
[1641034884795,0.07916505,46893.0,46892.0,0.69071458]
[1641034885296,0.08099886,46893.0,46892.0,0.36869471]
[1641034885696,0.08099886,46893.0,46892.0,0.46869471]
[1641034886337,0.08099886,46893.0,46892.0,0.48785346]
[1641034886338,0.08283267,46893.0,46892.0,0.48785346]
[1641034887340,0.08737806,46893.0,46892.0,0.38785346]
[1641034887741,0.08737806,46893.0,46892.0,0.4093981]
[1641034888342,0.08848721,46893.0,46892.0,0.4093981]
[1641034888545,0.08848721,46893.0,46892.0,0.3497814]
[1641034889342,0.09032102,46893.0,46892.0,0.37018265]
[1641034889992,0.09032102,46893.0,46892.0,0.38935172]
[1641034890392,0.09215483,46893.0,46892.0,0.38935172]
[1641034890794,0.09215483,46893.0,46892.0,0.3497814]
[1641034890992,0.09215483,46893.0,46892.0,0.67247787]
[1641034891193,0.09215483,46893.0,46892.0,0.67724366]
[1641034891392,0.09215483,46893.0,46892.0,0.77724366]
[1641034891593,0.00454539,46893.0,46892.0,1.08724366]
[1641034891893,0.00892249,46899.0,46894.0,0.2]
[1641034892094,0.00892249,46899.0,46898.0,0.340453]
[1641034892494,0.00892249,46899.0,46898.0,0.57362636]
[1641034892796,0.00892249,46899.0,46898.0,1.32284822]
[1641034892992,0.00892249,46899.0,46898.0,1.65414459]
[1641034893393,0.00892249,46899.0,46898.0,2.78014459]
[1641034893649,0.00892249,46899.0,46898.0,2.98014459]
[1641034893846,0.00892249,46899.0,46898.0,2.98136895]
[1641034894048,0.00892249,46899.0,46898.0,2.78136895]
[1641034894246,0.09757469,46903.0,46898.0,1.65536895]
[1641034894450,0.09757469,46903.0,46902.0,0.42324896]
[1641034894647,0.09757469,46903.0,46902.0,0.77188255]
[1641034894847,0.09757469,46903.0,46902.0,0.72188255]
[1641034895048,0.09748609,46903.0,46902.0,0.72671286]
[1641034895449,0.09748609,46903.0,46902.0,0.74654346]
[1641034895450,0.09553425,46903.0,46902.0,0.74654346]
[1641034895847,0.09553425,46903.0,46902.0,0.72671286]
[1641034896046,0.09544565,46903.0,46902.0,0.72671286]
[1641034896247,0.09544565,46903.0,46902.0,0.74854461]
[1641034896448,0.09349381,46903.0,46902.0,0.74854461]
[1641034897049,0.09340521,46903.0,46902.0,0.74854461]
[1641034897302,0.09340521,46903.0,46902.0,0.76804011]
[1641034897492,0.09340521,46903.0,46902.0,0.74620836]
[1641034898099,0.09331661,46903.0,46902.0,0.75070084]
[1641034898496,0.09136477,46903.0,46902.0,0.75070084]
[1641034898895,0.09407635,46903.0,46902.0,0.76960914]
[1641034899094,0.09407635,46903.0,46902.0,0.75011364]
[1641034899293,0.09407635,46903.0,46902.0,0.77210734]
[1641034899294,0.09398775,46903.0,46902.0,0.77210734]
[1641034899493,0.09203591,46903.0,46902.0,0.75319904]
[1641034899893,0.08932433,46903.0,46902.0,0.75319904]
[1641034900294,0.08923573,46903.0,46902.0,0.87137779]
[1641034900494,0.08728389,46903.0,46902.0,0.87137779]
[1641034900697,0.08728389,46903.0,46902.0,1.99737779]
[1641034900893,0.08999547,46903.0,46902.0,1.99737779]
[1641034901145,0.08999547,46903.0,46902.0,0.77137779]
[1641034901343,0.08990687,46903.0,46902.0,0.78953716]
[1641034901542,0.08795503,46903.0,46902.0,1.87536471]
[1641034901745,0.08795503,46903.0,46902.0,2.08536471]
[1641034902443,0.08786643,46903.0,46902.0,2.10660895]
[1641034902644,0.08591459,46903.0,46902.0,2.08844958]
[1641034902843,0.08591459,46903.0,46902.0,2.13844958]
[1641034903042,0.08320301,46903.0,46902.0,2.13844958]
[1641034903246,0.08311441,46903.0,46902.0,2.08844958]
[1641034903446,0.08311441,46903.0,46902.0,2.08897802]
[1641034904442,0.08302581,46903.0,46902.0,2.10704705]
[1641034904644,0.08107397,46903.0,46902.0,2.08527437]
[1641034905297,0.08098537,46903.0,46902.0,2.10634373]
[1641034905497,0.08098537,46903.0,46902.0,2.1882747]
[1641034905697,0.07903353,46903.0,46902.0,2.1882747]
[1641034906498,0.07894493,46903.0,46902.0,2.0875993]
[1641034906698,0.07699309,46903.0,46902.0,2.0875993]
[1641034907297,0.07699309,46903.0,46902.0,2.10833987]
[1641034907497,0.07699309,46903.0,46902.0,2.08794591]
[1641034907697,0.07504125,46903.0,46902.0,2.08794591]
[1641034907897,0.07504125,46903.0,46902.0,2.13794591]
[1641034908097,0.07775283,46903.0,46902.0,2.18794591]
[1641034908298,0.07775283,46903.0,46902.0,2.20889037]
[1641034908544,0.07766423,46903.0,46902.0,2.20889037]
[1641034908745,0.07571239,46903.0,46902.0,2.20889037]
[1641034909145,0.07300081,46903.0,46902.0,0.94120534]
[1641034909343,0.07300081,46903.0,46902.0,0.96292835]
[1641034909945,0.07104897,46903.0,46902.0,0.96292835]
[1641034910146,0.07104897,46903.0,46902.0,2.28892835]
[1641034910347,0.07104897,46903.0,46902.0,2.33892835]
[1641034910548,0.07113757,46903.0,46902.0,2.2069863]
[1641034910750,0.07113757,46903.0,46902.0,2.38526329]
[1641034910948,0.07113757,46903.0,46902.0,2.28526329]
[1641034911151,0.07113757,46903.0,46902.0,2.08526329]
[1641034911549,0.07122617,46903.0,46902.0,0.57783374]
[1641034911951,0.07122617,46903.0,46902.0,0.59886084]
[1641034912149,0.07577156,46903.0,46902.0,0.58080289]
[1641034912394,0.07122617,46903.0,46902.0,0.59935203]
[1641034912593,0.07326662,46903.0,46902.0,0.57832493]
[1641034912794,0.07326662,46903.0,46902.0,0.23787193]
[1641034913193,0.07781201,46903.0,46902.0,0.23787193]
[1641034913393,0.0759782,46903.0,46902.0,0.25733735]
[1641034913593,0.07801865,46903.0,46902.0,0.23878821]
[1641034914695,0.0800591,46903.0,46902.0,0.23878821]
[1641034914894,0.62252206,46903.0,46902.0,0.23878821]
[1641034915094,0.62252206,46903.0,46893.0,0.01880954]
[1641034915095,0.95,46902.0,46893.0,0.01880954]
[1641034915294,0.00124679,46894.0,46893.0,0.01880954]
[1641034915694,0.30171264,46894.0,46889.0,0.02154582]
[1641034916146,0.40171264,46894.0,46889.0,0.02154582]
[1641034916351,0.053331,46892.0,46889.0,0.02154582]
[1641034916746,0.053331,46892.0,46885.0,0.01979209]
[1641034917547,0.053331,46892.0,46884.0,0.00022]
[1641034917748,0.237356,46891.0,46884.0,0.00022]
[1641034918048,0.05537145,46892.0,46885.0,0.00483177]
[1641034918049,0.05334,46888.0,46885.0,0.00483177]
[1641034918648,0.31466049,46886.0,46885.0,0.00483177]
[1641034919448,0.33312404,46886.0,46885.0,0.00483177]
[1641034919903,0.33516449,46886.0,46885.0,0.00483177]
[1641034920500,0.35594756,46886.0,46885.0,0.00483177]
[1641034920702,0.33748401,46886.0,46885.0,0.00483177]
[1641034920905,0.33952446,46886.0,46885.0,0.00483177]
[1641034921503,0.36128647,46886.0,46885.0,0.00483177]
[1641034921703,0.3405034,46886.0,46885.0,0.00483177]
[1641034921903,0.67989985,46886.0,46885.0,0.00483177]
[1641034922501,0.70122863,46886.0,46885.0,0.21483177]
[1641034922702,0.68130043,46886.0,46885.0,0.21483177]
[1641034922902,0.44598488,46886.0,46885.0,0.21483177]
[1641034923103,0.34598488,46886.0,46885.0,0.21483177]
[1641034923541,0.36573249,46886.0,46885.0,0.21483177]
[1641034923743,0.34623752,46886.0,46885.0,0.21483177]
[1641034923943,0.34827797,46886.0,46885.0,0.2160814]
[1641034924544,0.4665655,46886.0,46885.0,0.2160814]
[1641034924947,0.47043976,46886.0,46885.0,0.2160814]
[1641034925546,0.49185065,46886.0,46885.0,0.2160814]
[1641034925947,0.43899046,46886.0,46885.0,0.2160814]
[1641034926448,0.02424137,46886.0,46885.0,0.2160814]
[1641034926650,0.04450104,46886.0,46885.0,0.49097843]
[1641034926848,0.04904643,46886.0,46885.0,0.5565344]
[1641034927048,0.05099828,46886.0,46885.0,0.5565344]
[1641034927698,0.04904643,46886.0,46885.0,0.82798024]
[1641034927900,0.05359182,46886.0,46885.0,0.82798024]
[1641034928402,0.03342075,46886.0,46885.0,0.82798024]
[1641034928601,0.03342075,46886.0,46885.0,0.84740261]
[1641034929001,0.03796614,46886.0,46885.0,0.84740261]
[1641034929304,0.03805474,46886.0,46885.0,0.84740261]
[1641034929501,0.03805474,46886.0,46885.0,0.82798024]
[1641034930003,0.04260013,46886.0,46885.0,0.82798024]
[1641034930201,0.04260013,46886.0,46885.0,0.84837336]
[1641034930804,0.04260013,46886.0,46885.0,0.86741607]
[1641034931046,0.04714552,46886.0,46885.0,0.86741607]
[1641034931649,0.04714552,46886.0,46885.0,0.88771182]
[1641034931851,0.04714552,46886.0,46885.0,0.84947266]
[1641034932149,0.04897933,46886.0,46885.0,0.84947266]
[1641034932648,0.04897933,46886.0,46885.0,0.8706027]
[1641034932848,0.05093118,46886.0,46885.0,0.85030695]
[1641034933049,0.05276499,46886.0,46885.0,0.85030695]
[1641034933550,0.05285359,46886.0,46885.0,0.87073069]
[1641034933749,0.05285359,46886.0,46885.0,0.84960065]
[1641034933949,0.05480544,46886.0,46885.0,0.84960065]
[1641034934149,0.05935083,46886.0,46885.0,0.84960065]
[1641034934551,0.05935083,46886.0,46885.0,0.87011683]
[1641034934806,0.05935083,46886.0,46885.0,0.84969309]